[Event "Titled Tuesday Blitz May 16 Late 2023"]
[White "Pavlidou, Ekaterini"]
[Black "KorolDimitriy75"]
[WhiteFideId "4213262"]
[WhiteElo "2126"]
[BlackElo "2449"]
[Result "1-0"]
[Round "06"]
[TimeControl "180+2"]
[Date "2023.05.16"]
[WhiteClock "0:00:23"]
[BlackClock "0:00:00"]

1. d4 {[%clk 0:03:00]}  Nf6 {[%clk 0:02:59]} 2. c4 {[%clk 0:03:01]}  c5 {[%clk 0:02:59]} 3. d5 {[%clk 0:03:00]}  b5 {[%clk 0:02:59]} 4. cxb5 {[%clk 0:03:00]}  a6 {[%clk 0:03:00]} 5. b6 {[%clk 0:02:59]}  d6 {[%clk 0:02:59]} 6. Nc3 {[%clk 0:03:00]}  Nbd7 {[%clk 0:02:59]} 7. b7 {[%clk 0:02:59]}  Bxb7 {[%clk 0:02:59]} 8. e4 {[%clk 0:02:58]}  g6 {[%clk 0:02:58]} 9. h4 {[%clk 0:02:57]}  h5 {[%clk 0:02:45]} 10. Bg5 {[%clk 0:02:54]}  Bg7 {[%clk 0:02:45]} 11. f4 {[%clk 0:02:53]}  O-O {[%clk 0:02:38]} 12. Nf3 {[%clk 0:02:53]}  Ng4 {[%clk 0:02:35]} 13. f5 {[%clk 0:02:45]}  Nde5 {[%clk 0:02:15]} 14. Be2 {[%clk 0:02:38]}  Qd7 {[%clk 0:01:21]} 15. Nxe5 {[%clk 0:02:32]}  Nxe5 {[%clk 0:01:11]} 16. g4 {[%clk 0:02:29]}  hxg4 {[%clk 0:01:09]} 17. Bxg4 {[%clk 0:02:24]}  Rab8 {[%clk 0:00:39]} 18. h5 {[%clk 0:02:24]}  Bc8 {[%clk 0:00:36]} 19. Bh3 {[%clk 0:01:35]}  Qb7 {[%clk 0:00:33]} 20. Rh2 {[%clk 0:01:13]}  c4 {[%clk 0:00:26]} 21. Bf1 {[%clk 0:00:50]}  gxf5 {[%clk 0:00:21]} 22. h6 {[%clk 0:00:45]}  Bf6 {[%clk 0:00:20]} 23. Qh5 {[%clk 0:00:33]}  Kh7 {[%clk 0:00:16]} 24. Bxf6 {[%clk 0:00:30]}  exf6 {[%clk 0:00:16]} 25. Rg2 {[%clk 0:00:29]}  Ng6 {[%clk 0:00:00]} 26. O-O-O {[%clk 0:00:23]} 1-0


[Site "https://www.chess.com"]

[Event "Titled Tuesday Blitz May 16 Late 2023"]
[White "Ward, Ieuan C"]
[Black "Ziatdinov, Raset"]
[WhiteFideId "406627"]
[BlackFideId "2015323"]
[WhiteElo "2293"]
[BlackElo "2220"]
[Result "0-1"]
[Round "06"]
[TimeControl "180+2"]
[Date "2023.05.16"]
[WhiteClock "0:00:00"]
[BlackClock "0:00:11"]

1. d4 {[%clk 0:03:00]}  Nf6 {[%clk 0:02:56]} 2. Nf3 {[%clk 0:03:00]}  g6 {[%clk 0:02:57]} 3. c4 {[%clk 0:03:00]}  Bg7 {[%clk 0:02:58]} 4. Nc3 {[%clk 0:03:01]}  d6 {[%clk 0:02:57]} 5. g3 {[%clk 0:03:01]}  O-O {[%clk 0:02:58]} 6. Bg2 {[%clk 0:03:01]}  Nc6 {[%clk 0:02:57]} 7. O-O {[%clk 0:03:01]}  e5 {[%clk 0:02:58]} 8. d5 {[%clk 0:03:01]}  Ne7 {[%clk 0:02:58]} 9. e4 {[%clk 0:03:00]}  Ne8 {[%clk 0:02:58]} 10. Ne1 {[%clk 0:02:59]}  f5 {[%clk 0:02:58]} 11. Nd3 {[%clk 0:02:55]}  Nf6 {[%clk 0:02:55]} 12. Bg5 {[%clk 0:02:51]}  h6 {[%clk 0:02:55]} 13. Bxf6 {[%clk 0:02:51]}  Bxf6 {[%clk 0:02:55]} 14. f4 {[%clk 0:02:40]}  exf4 {[%clk 0:02:52]} 15. Nxf4 {[%clk 0:02:38]}  Bg7 {[%clk 0:02:48]} 16. Ne6 {[%clk 0:02:24]}  Bxe6 {[%clk 0:02:46]} 17. dxe6 {[%clk 0:02:25]}  c6 {[%clk 0:02:40]} 18. exf5 {[%clk 0:02:12]}  Nxf5 {[%clk 0:02:39]} 19. Qd3 {[%clk 0:02:02]}  Qb6+ {[%clk 0:02:38]} 20. Kh1 {[%clk 0:01:57]}  Qxb2 {[%clk 0:02:26]} 21. Ne4 {[%clk 0:01:54]}  Qd4 {[%clk 0:02:19]} 22. Rad1 {[%clk 0:01:39]}  Rae8 {[%clk 0:02:09]} 23. Nxd6 {[%clk 0:01:30]}  Qxd6 {[%clk 0:01:29]} 24. Rxf5 {[%clk 0:01:18]}  Qxd3 {[%clk 0:01:24]} 25. Rxf8+ {[%clk 0:01:17]}  Kxf8 {[%clk 0:01:21]} 26. Rxd3 {[%clk 0:01:17]}  Rxe6 {[%clk 0:01:22]} 27. Bh3 {[%clk 0:00:51]}  Re1+ {[%clk 0:01:19]} 28. Kg2 {[%clk 0:00:50]}  Re2+ {[%clk 0:01:19]} 29. Kf3 {[%clk 0:00:51]}  Rxa2 {[%clk 0:01:15]} 30. Rd8+ {[%clk 0:00:49]}  Ke7 {[%clk 0:01:11]} 31. Rd7+ {[%clk 0:00:49]}  Kf6 {[%clk 0:01:11]} 32. Rxb7 {[%clk 0:00:46]}  Rxh2 {[%clk 0:01:11]} 33. Bd7 {[%clk 0:00:44]}  Ra2 {[%clk 0:00:57]} 34. Bxc6 {[%clk 0:00:43]}  Ra3+ {[%clk 0:00:53]} 35. Kg2 {[%clk 0:00:37]}  Bf8 {[%clk 0:00:49]} 36. Bd5 {[%clk 0:00:36]}  Bd6 {[%clk 0:00:47]} 37. Rd7 {[%clk 0:00:32]}  Bxg3 {[%clk 0:00:40]} 38. c5 {[%clk 0:00:25]}  h5 {[%clk 0:00:26]} 39. c6 {[%clk 0:00:23]}  h4 {[%clk 0:00:20]} 40. c7 {[%clk 0:00:13]}  Rc3 {[%clk 0:00:17]} 41. c8=Q {[%clk 0:00:09]}  Rxc8 {[%clk 0:00:17]} 42. Rxa7 {[%clk 0:00:09]}  Rc2+ {[%clk 0:00:17]} 43. Kh3 {[%clk 0:00:08]}  Kg5 {[%clk 0:00:16]} 44. Bg2 {[%clk 0:00:07]}  Rc1 {[%clk 0:00:12]} 45. Ra5+ {[%clk 0:00:07]}  Kh6 {[%clk 0:00:12]} 46. Kg4 {[%clk 0:00:07]}  Rc4+ {[%clk 0:00:12]} 47. Kh3 {[%clk 0:00:06]}  Rc3 {[%clk 0:00:12]} 48. Rb5 {[%clk 0:00:06]}  Re3 {[%clk 0:00:11]} 49. Ra5 {[%clk 0:00:00]}  Be1+ {[%clk 0:00:11]} 0-1


[Site "https://www.chess.com"]

[Event "Titled Tuesday Blitz May 16 Late 2023"]
[White "Mazurkiewicz, Michal"]
[Black "lluiss"]
[WhiteFideId "1124943"]
[WhiteElo "2054"]
[BlackElo "2281"]
[Result "0-1"]
[Round "06"]
[TimeControl "180+2"]
[Date "2023.05.16"]
[WhiteClock "0:00:00"]
[BlackClock "0:00:32"]

1. e4 {[%clk 0:02:59]}  c5 {[%clk 0:02:58]} 2. Nf3 {[%clk 0:03:00]}  d6 {[%clk 0:02:58]} 3. g3 {[%clk 0:03:00]}  Nf6 {[%clk 0:02:55]} 4. d3 {[%clk 0:03:00]}  b6 {[%clk 0:02:49]} 5. Bg2 {[%clk 0:03:01]}  Bb7 {[%clk 0:02:49]} 6. O-O {[%clk 0:03:01]}  e5 {[%clk 0:02:50]} 7. Nc3 {[%clk 0:02:57]}  Be7 {[%clk 0:02:50]} 8. a4 {[%clk 0:02:57]}  a6 {[%clk 0:02:49]} 9. Nd2 {[%clk 0:02:58]}  Nc6 {[%clk 0:02:39]} 10. Nc4 {[%clk 0:02:57]}  Nd4 {[%clk 0:02:29]} 11. Nd5 {[%clk 0:02:55]}  Nxd5 {[%clk 0:02:25]} 12. exd5 {[%clk 0:02:55]}  b5 {[%clk 0:02:21]} 13. axb5 {[%clk 0:02:54]}  axb5 {[%clk 0:02:21]} 14. Rxa8 {[%clk 0:02:54]}  Qxa8 {[%clk 0:02:20]} 15. Ne3 {[%clk 0:02:54]}  Bg5 {[%clk 0:02:14]} 16. c3 {[%clk 0:02:51]}  Bxe3 {[%clk 0:01:48]} 17. fxe3 {[%clk 0:02:52]}  Bxd5 {[%clk 0:01:47]} 18. Bxd5 {[%clk 0:02:52]}  Qxd5 {[%clk 0:01:47]} 19. exd4 {[%clk 0:02:50]}  cxd4 {[%clk 0:01:47]} 20. Qf3 {[%clk 0:02:47]}  Qxf3 {[%clk 0:01:40]} 21. Rxf3 {[%clk 0:02:48]}  dxc3 {[%clk 0:01:35]} 22. bxc3 {[%clk 0:02:49]}  Ke7 {[%clk 0:01:35]} 23. Bd2 {[%clk 0:02:14]}  Ra8 {[%clk 0:01:32]} 24. Rf1 {[%clk 0:02:11]}  Ra2 {[%clk 0:01:31]} 25. Rd1 {[%clk 0:02:11]}  d5 {[%clk 0:01:28]} 26. Kf1 {[%clk 0:02:07]}  Ke6 {[%clk 0:01:28]} 27. Ke2 {[%clk 0:02:07]}  f5 {[%clk 0:01:28]} 28. Rb1 {[%clk 0:02:06]}  g5 {[%clk 0:01:13]} 29. Rxb5 {[%clk 0:02:04]}  f4 {[%clk 0:01:13]} 30. Rb1 {[%clk 0:00:14]}  e4 {[%clk 0:01:04]} 31. gxf4 {[%clk 0:00:12]}  gxf4 {[%clk 0:01:03]} 32. dxe4 {[%clk 0:00:09]}  dxe4 {[%clk 0:01:02]} 33. Kd1 {[%clk 0:00:04]}  e3 {[%clk 0:00:58]} 34. Bc1 {[%clk 0:00:04]}  Rxh2 {[%clk 0:00:57]} 35. Rb5 {[%clk 0:00:04]}  Rh1+ {[%clk 0:00:56]} 36. Kc2 {[%clk 0:00:03]}  Rh2+ {[%clk 0:00:52]} 37. Kd3 {[%clk 0:00:03]}  Rh1 {[%clk 0:00:46]} 38. Rb1 {[%clk 0:00:02]}  Rd1+ {[%clk 0:00:41]} 39. Ke4 {[%clk 0:00:02]}  e2 {[%clk 0:00:39]} 40. Rb6+ {[%clk 0:00:02]}  Kd7 {[%clk 0:00:38]} 41. Bxf4 {[%clk 0:00:02]}  e1=Q+ {[%clk 0:00:37]} 42. Be3 {[%clk 0:00:00]}  Qxc3 {[%clk 0:00:32]} 0-1


[Site "https://www.chess.com"]

[Event "Titled Tuesday Blitz May 16 Late 2023"]
[White "Magallanes, Rey Jomar"]
[Black "K2JW"]
[WhiteFideId "5205948"]
[WhiteElo "2254"]
[BlackElo "2380"]
[Result "1-0"]
[Round "06"]
[TimeControl "180+2"]
[Date "2023.05.16"]
[WhiteClock "0:00:42"]
[BlackClock "0:00:05"]

1. e4 {[%clk 0:03:00]}  c5 {[%clk 0:03:00]} 2. Nf3 {[%clk 0:02:56]}  d6 {[%clk 0:02:59]} 3. d4 {[%clk 0:02:56]}  cxd4 {[%clk 0:03:00]} 4. Nxd4 {[%clk 0:02:56]}  Nf6 {[%clk 0:03:01]} 5. Nc3 {[%clk 0:02:55]}  a6 {[%clk 0:03:01]} 6. Be2 {[%clk 0:02:54]}  e5 {[%clk 0:03:00]} 7. Nb3 {[%clk 0:02:52]}  Be7 {[%clk 0:02:59]} 8. O-O {[%clk 0:02:52]}  O-O {[%clk 0:02:59]} 9. Qd3 {[%clk 0:02:53]}  b5 {[%clk 0:02:37]} 10. Bd2 {[%clk 0:02:52]}  Bb7 {[%clk 0:02:36]} 11. Nd5 {[%clk 0:02:52]}  Nxd5 {[%clk 0:02:28]} 12. exd5 {[%clk 0:02:53]}  f5 {[%clk 0:02:15]} 13. Na5 {[%clk 0:02:50]}  Bc8 {[%clk 0:02:11]} 14. f4 {[%clk 0:02:48]}  e4 {[%clk 0:02:03]} 15. Qb3 {[%clk 0:02:43]}  Qb6+ {[%clk 0:01:47]} 16. Kh1 {[%clk 0:02:39]}  Nd7 {[%clk 0:01:41]} 17. Nc6 {[%clk 0:02:37]}  Bf6 {[%clk 0:01:41]} 18. Be3 {[%clk 0:02:31]}  Qc7 {[%clk 0:01:25]} 19. c4 {[%clk 0:02:23]}  bxc4 {[%clk 0:01:20]} 20. Qxc4 {[%clk 0:02:24]}  Kh8 {[%clk 0:00:54]} 21. Rac1 {[%clk 0:02:12]}  Bb7 {[%clk 0:00:53]} 22. Qa4 {[%clk 0:02:08]}  Nb6 {[%clk 0:00:45]} 23. Qa5 {[%clk 0:02:05]}  Bxb2 {[%clk 0:00:28]} 24. Bxb6 {[%clk 0:02:02]}  Qf7 {[%clk 0:00:27]} 25. Rc2 {[%clk 0:01:59]}  Bf6 {[%clk 0:00:25]} 26. Nb4 {[%clk 0:01:41]}  Rfe8 {[%clk 0:00:10]} 27. Rc7 {[%clk 0:01:39]}  Re7 {[%clk 0:00:10]} 28. Rfc1 {[%clk 0:01:38]}  Rae8 {[%clk 0:00:09]} 29. Nc6 {[%clk 0:01:34]}  Bxc6 {[%clk 0:00:09]} 30. R7xc6 {[%clk 0:01:30]}  Rd7 {[%clk 0:00:08]} 31. Bxa6 {[%clk 0:01:28]}  e3 {[%clk 0:00:08]} 32. Be2 {[%clk 0:01:24]}  g6 {[%clk 0:00:07]} 33. Rc7 {[%clk 0:01:20]}  Re4 {[%clk 0:00:06]} 34. Qb5 {[%clk 0:01:17]}  Rxc7 {[%clk 0:00:05]} 35. Rxc7 {[%clk 0:01:16]}  Re7 {[%clk 0:00:04]} 36. Rxe7 {[%clk 0:01:11]}  Qxe7 {[%clk 0:00:05]} 37. a4 {[%clk 0:01:04]}  Qe4 {[%clk 0:00:05]} 38. Qd3 {[%clk 0:01:02]}  Qxf4 {[%clk 0:00:02]} 39. Bxe3 {[%clk 0:01:01]}  Qxa4 {[%clk 0:00:01]} 40. g3 {[%clk 0:00:58]}  Qa1+ {[%clk 0:00:02]} 41. Kg2 {[%clk 0:00:58]}  Qe5 {[%clk 0:00:02]} 42. Bf4 {[%clk 0:00:56]}  Qe7 {[%clk 0:00:02]} 43. Qe3 {[%clk 0:00:53]}  Qd7 {[%clk 0:00:02]} 44. Qe6 {[%clk 0:00:53]}  Qxe6 {[%clk 0:00:03]} 45. dxe6 {[%clk 0:00:54]}  Be7 {[%clk 0:00:03]} 46. Bb5 {[%clk 0:00:50]}  Kg7 {[%clk 0:00:04]} 47. Bd7 {[%clk 0:00:48]}  Kf6 {[%clk 0:00:05]} 48. Kf3 {[%clk 0:00:48]}  g5 {[%clk 0:00:05]} 49. Bd2 {[%clk 0:00:48]}  Ke5 {[%clk 0:00:05]} 50. Bc3+ {[%clk 0:00:46]}  Kd5 {[%clk 0:00:05]} 51. h4 {[%clk 0:00:43]}  Kc4 {[%clk 0:00:04]} 52. Bg7 {[%clk 0:00:41]}  gxh4 {[%clk 0:00:05]} 53. gxh4 {[%clk 0:00:41]}  Bxh4 {[%clk 0:00:05]} 54. Kf4 {[%clk 0:00:41]}  d5 {[%clk 0:00:05]} 55. Kxf5 {[%clk 0:00:41]}  d4 {[%clk 0:00:05]} 56. Bf6 {[%clk 0:00:41]}  Bxf6 {[%clk 0:00:05]} 57. Kxf6 {[%clk 0:00:42]}  d3 {[%clk 0:00:06]} 58. e7 {[%clk 0:00:42]}  d2 {[%clk 0:00:05]} 59. Bg4 {[%clk 0:00:42]} 1-0


[Site "https://www.chess.com"]

[Event "Titled Tuesday Blitz May 16 Late 2023"]
[White "Mirzoev, Azer"]
[Black "Horokoskii"]
[WhiteFideId "13400304"]
[WhiteElo "2525"]
[BlackElo "2161"]
[Result "1-0"]
[Round "06"]
[TimeControl "180+2"]
[Date "2023.05.16"]
[WhiteClock "0:02:01"]
[BlackClock "0:00:59"]

1. c4 {[%clk 0:02:59]}  Nf6 {[%clk 0:02:59]} 2. Nc3 {[%clk 0:02:59]}  g6 {[%clk 0:02:59]} 3. e4 {[%clk 0:02:58]}  d6 {[%clk 0:02:56]} 4. d4 {[%clk 0:02:58]}  Bg7 {[%clk 0:02:56]} 5. Bg5 {[%clk 0:02:58]}  O-O {[%clk 0:02:55]} 6. Qd2 {[%clk 0:02:56]}  c5 {[%clk 0:02:55]} 7. d5 {[%clk 0:02:56]}  e6 {[%clk 0:02:44]} 8. f3 {[%clk 0:02:52]}  exd5 {[%clk 0:02:43]} 9. cxd5 {[%clk 0:02:51]}  a6 {[%clk 0:02:42]} 10. a4 {[%clk 0:02:50]}  b6 {[%clk 0:02:41]} 11. Nge2 {[%clk 0:02:48]}  Nbd7 {[%clk 0:02:41]} 12. Ng3 {[%clk 0:02:48]}  Re8 {[%clk 0:02:40]} 13. Be2 {[%clk 0:02:48]}  Rb8 {[%clk 0:02:34]} 14. O-O {[%clk 0:02:47]}  Qe7 {[%clk 0:02:34]} 15. Kh1 {[%clk 0:02:27]}  Ne5 {[%clk 0:02:28]} 16. h3 {[%clk 0:02:23]}  c4 {[%clk 0:01:56]} 17. f4 {[%clk 0:02:18]}  Nd3 {[%clk 0:01:56]} 18. Bxd3 {[%clk 0:02:13]}  cxd3 {[%clk 0:01:57]} 19. f5 {[%clk 0:02:08]}  a5 {[%clk 0:01:45]} 20. Qxd3 {[%clk 0:02:07]}  Qa7 {[%clk 0:01:34]} 21. fxg6 {[%clk 0:02:04]}  Ba6 {[%clk 0:01:15]} 22. gxf7+ {[%clk 0:02:03]}  Kxf7 {[%clk 0:01:15]} 23. Nb5 {[%clk 0:02:03]}  Bxb5 {[%clk 0:01:13]} 24. axb5 {[%clk 0:02:04]}  h6 {[%clk 0:01:04]} 25. Bxf6 {[%clk 0:02:02]}  Bxf6 {[%clk 0:00:59]} 26. Nh5 {[%clk 0:02:01]} 1-0


[Site "https://www.chess.com"]

[Event "Titled Tuesday Blitz May 16 Late 2023"]
[White "Roman, Rodrigo"]
[Black "Bjelobrk, Igor"]
[WhiteFideId "3701220"]
[BlackFideId "4300726"]
[WhiteElo "1995"]
[BlackElo "2319"]
[Result "0-1"]
[Round "06"]
[TimeControl "180+2"]
[Date "2023.05.16"]
[WhiteClock "0:00:41"]
[BlackClock "0:01:20"]

1. e4 {[%clk 0:03:00]}  e6 {[%clk 0:02:54]} 2. d4 {[%clk 0:03:01]}  d5 {[%clk 0:02:52]} 3. Bd3 {[%clk 0:03:01]}  c5 {[%clk 0:02:51]} 4. dxc5 {[%clk 0:03:01]}  Bxc5 {[%clk 0:02:50]} 5. exd5 {[%clk 0:03:01]}  exd5 {[%clk 0:02:50]} 6. Nf3 {[%clk 0:03:02]}  Nf6 {[%clk 0:02:49]} 7. Qe2+ {[%clk 0:03:02]}  Be6 {[%clk 0:02:47]} 8. Ng5 {[%clk 0:03:02]}  O-O {[%clk 0:02:45]} 9. Nxe6 {[%clk 0:03:02]}  fxe6 {[%clk 0:02:45]} 10. Qxe6+ {[%clk 0:03:03]}  Kh8 {[%clk 0:02:45]} 11. O-O {[%clk 0:03:03]}  Nc6 {[%clk 0:02:41]} 12. Bg5 {[%clk 0:03:02]}  Qb6 {[%clk 0:02:41]} 13. Nc3 {[%clk 0:02:54]}  Rae8 {[%clk 0:02:27]} 14. Qh3 {[%clk 0:02:53]}  Ne4 {[%clk 0:02:27]} 15. Bxe4 {[%clk 0:02:38]}  dxe4 {[%clk 0:02:27]} 16. Na4 {[%clk 0:02:38]}  Bxf2+ {[%clk 0:02:25]} 17. Kh1 {[%clk 0:02:37]}  Qb5 {[%clk 0:02:24]} 18. Bh6 {[%clk 0:02:24]}  gxh6 {[%clk 0:02:17]} 19. Nc3 {[%clk 0:02:23]}  Qg5 {[%clk 0:02:15]} 20. Qd7 {[%clk 0:02:19]}  Re7 {[%clk 0:02:13]} 21. Qd6 {[%clk 0:02:15]}  e3 {[%clk 0:02:07]} 22. Nd5 {[%clk 0:02:15]}  Ref7 {[%clk 0:02:06]} 23. Qe6 {[%clk 0:02:04]}  Qe5 {[%clk 0:02:02]} 24. Qxe5+ {[%clk 0:01:56]}  Nxe5 {[%clk 0:02:01]} 25. Nxe3 {[%clk 0:01:57]}  Bxe3 {[%clk 0:02:00]} 26. Rfe1 {[%clk 0:01:56]}  Ng4 {[%clk 0:01:56]} 27. h3 {[%clk 0:01:56]}  Nf2+ {[%clk 0:01:56]} 28. Kh2 {[%clk 0:01:57]}  Bb6 {[%clk 0:01:56]} 29. Re6 {[%clk 0:01:55]}  Kg7 {[%clk 0:01:55]} 30. Rae1 {[%clk 0:01:50]}  Rd8 {[%clk 0:01:55]} 31. Re7 {[%clk 0:01:39]}  Rd2 {[%clk 0:01:52]} 32. R7e2 {[%clk 0:01:37]}  Rxe2 {[%clk 0:01:51]} 33. Rxe2 {[%clk 0:01:37]}  h5 {[%clk 0:01:51]} 34. g3 {[%clk 0:01:37]}  Kf6 {[%clk 0:01:47]} 35. Kg2 {[%clk 0:01:36]}  Re7 {[%clk 0:01:47]} 36. Rd2 {[%clk 0:01:35]}  Ne4 {[%clk 0:01:46]} 37. Rd5 {[%clk 0:01:33]}  Kg6 {[%clk 0:01:45]} 38. c4 {[%clk 0:01:27]}  Bc7 {[%clk 0:01:43]} 39. g4 {[%clk 0:01:26]}  hxg4 {[%clk 0:01:43]} 40. hxg4 {[%clk 0:01:27]}  Nf6 {[%clk 0:01:42]} 41. Rb5 {[%clk 0:01:26]}  Bf4 {[%clk 0:01:36]} 42. Kf3 {[%clk 0:01:25]}  Bg5 {[%clk 0:01:36]} 43. b3 {[%clk 0:01:20]}  b6 {[%clk 0:01:36]} 44. a4 {[%clk 0:01:14]}  Re3+ {[%clk 0:01:35]} 45. Kg2 {[%clk 0:01:15]}  Nxg4 {[%clk 0:01:35]} 46. a5 {[%clk 0:01:15]}  bxa5 {[%clk 0:01:28]} 47. c5 {[%clk 0:01:15]}  Rc3 {[%clk 0:01:26]} 48. Rxa5 {[%clk 0:01:15]}  Rxb3 {[%clk 0:01:26]} 49. Rxa7 {[%clk 0:01:15]}  Rc3 {[%clk 0:01:26]} 50. Ra6+ {[%clk 0:01:13]}  Kf5 {[%clk 0:01:26]} 51. Ra5 {[%clk 0:01:14]}  Ne5 {[%clk 0:01:25]} 52. Ra7 {[%clk 0:01:12]}  h5 {[%clk 0:01:25]} 53. Rh7 {[%clk 0:01:10]}  h4 {[%clk 0:01:25]} 54. Rc7 {[%clk 0:01:11]}  Kg4 {[%clk 0:01:25]} 55. Kf1 {[%clk 0:01:08]}  Rc2 {[%clk 0:01:24]} 56. Ra7 {[%clk 0:01:04]}  h3 {[%clk 0:01:23]} 57. Ra4+ {[%clk 0:01:05]}  Bf4 {[%clk 0:01:23]} 58. Kg1 {[%clk 0:01:05]}  h2+ {[%clk 0:01:21]} 59. Kh1 {[%clk 0:01:05]}  Rc1+ {[%clk 0:01:20]} 60. Kg2 {[%clk 0:00:41]}  h1=Q+ {[%clk 0:01:20]} 0-1


[Site "https://www.chess.com"]

[Event "Titled Tuesday Blitz May 16 Late 2023"]
[White "HamedWafa4"]
[Black "Ingunza Curro, Andres"]
[BlackFideId "24526371"]
[WhiteElo "2606"]
[BlackElo "2247"]
[Result "0-1"]
[Round "06"]
[TimeControl "180+2"]
[Date "2023.05.16"]
[WhiteClock "0:00:20"]
[BlackClock "0:00:15"]

1. e4 {[%clk 0:03:00]}  e5 {[%clk 0:02:54]} 2. Nf3 {[%clk 0:02:52]}  Nc6 {[%clk 0:02:55]} 3. Bb5 {[%clk 0:02:51]}  a6 {[%clk 0:02:52]} 4. Ba4 {[%clk 0:02:51]}  Nf6 {[%clk 0:02:52]} 5. O-O {[%clk 0:02:50]}  Be7 {[%clk 0:02:51]} 6. d3 {[%clk 0:02:49]}  b5 {[%clk 0:02:51]} 7. Bb3 {[%clk 0:02:47]}  O-O {[%clk 0:02:51]} 8. Nc3 {[%clk 0:02:45]}  d6 {[%clk 0:02:48]} 9. a3 {[%clk 0:02:44]}  Na5 {[%clk 0:02:48]} 10. Ba2 {[%clk 0:02:44]}  h6 {[%clk 0:02:47]} 11. b4 {[%clk 0:02:42]}  Nc6 {[%clk 0:02:47]} 12. Nd5 {[%clk 0:02:42]}  Nxd5 {[%clk 0:02:46]} 13. Bxd5 {[%clk 0:02:43]}  Bd7 {[%clk 0:02:44]} 14. c4 {[%clk 0:02:25]}  bxc4 {[%clk 0:02:40]} 15. dxc4 {[%clk 0:02:21]}  Rb8 {[%clk 0:02:38]} 16. Be3 {[%clk 0:02:11]}  Bf6 {[%clk 0:02:27]} 17. Rb1 {[%clk 0:02:08]}  Ne7 {[%clk 0:02:20]} 18. c5 {[%clk 0:02:03]}  Bb5 {[%clk 0:02:11]} 19. Re1 {[%clk 0:02:00]}  Nxd5 {[%clk 0:01:51]} 20. exd5 {[%clk 0:01:57]}  Kh7 {[%clk 0:01:38]} 21. a4 {[%clk 0:01:53]}  Bd7 {[%clk 0:01:34]} 22. c6 {[%clk 0:01:54]}  Bg4 {[%clk 0:01:25]} 23. Ng5+ {[%clk 0:01:30]}  Bxg5 {[%clk 0:01:23]} 24. Qxg4 {[%clk 0:01:31]}  Bxe3 {[%clk 0:01:21]} 25. fxe3 {[%clk 0:01:32]}  f5 {[%clk 0:01:21]} 26. Qe2 {[%clk 0:01:32]}  Rb6 {[%clk 0:01:11]} 27. Rf1 {[%clk 0:01:32]}  Qh4 {[%clk 0:01:04]} 28. e4 {[%clk 0:01:21]}  f4 {[%clk 0:00:44]} 29. b5 {[%clk 0:01:18]}  axb5 {[%clk 0:00:43]} 30. Rxb5 {[%clk 0:01:15]}  Rfb8 {[%clk 0:00:42]} 31. Rxb6 {[%clk 0:01:11]}  Rxb6 {[%clk 0:00:43]} 32. Qf2 {[%clk 0:01:10]}  Qd8 {[%clk 0:00:39]} 33. a5 {[%clk 0:01:09]}  Ra6 {[%clk 0:00:39]} 34. Ra1 {[%clk 0:01:08]}  Qa8 {[%clk 0:00:39]} 35. Qd2 {[%clk 0:01:06]}  Qa7+ {[%clk 0:00:40]} 36. Qf2 {[%clk 0:01:05]}  Qa8 {[%clk 0:00:38]} 37. Qe2 {[%clk 0:01:05]}  Rxa5 {[%clk 0:00:37]} 38. Rb1 {[%clk 0:01:06]}  Qa7+ {[%clk 0:00:36]} 39. Kh1 {[%clk 0:01:05]}  Ra2 {[%clk 0:00:34]} 40. Qg4 {[%clk 0:01:04]}  Qf2 {[%clk 0:00:30]} 41. h3 {[%clk 0:00:58]}  Qg3 {[%clk 0:00:20]} 42. Qf5+ {[%clk 0:00:57]}  Qg6 {[%clk 0:00:20]} 43. Qxg6+ {[%clk 0:00:54]}  Kxg6 {[%clk 0:00:21]} 44. Rb7 {[%clk 0:00:55]}  Re2 {[%clk 0:00:20]} 45. Rxc7 {[%clk 0:00:55]}  Rxe4 {[%clk 0:00:20]} 46. Rd7 {[%clk 0:00:56]}  Re1+ {[%clk 0:00:19]} 47. Kh2 {[%clk 0:00:56]}  Rc1 {[%clk 0:00:20]} 48. Rxd6+ {[%clk 0:00:56]}  Kf5 {[%clk 0:00:20]} 49. Rd7 {[%clk 0:00:55]}  e4 {[%clk 0:00:20]} 50. Rxg7 {[%clk 0:00:55]}  Ke5 {[%clk 0:00:20]} 51. Rd7 {[%clk 0:00:46]}  e3 {[%clk 0:00:20]} 52. c7 {[%clk 0:00:47]}  Rc2 {[%clk 0:00:17]} 53. d6 {[%clk 0:00:37]}  f3 {[%clk 0:00:17]} 54. Kg3 {[%clk 0:00:37]}  f2 {[%clk 0:00:17]} 55. Rf7 {[%clk 0:00:31]}  Kxd6 {[%clk 0:00:17]} 56. Kh4 {[%clk 0:00:23]}  Rxc7 {[%clk 0:00:16]} 57. Rf3 {[%clk 0:00:20]}  e2 {[%clk 0:00:15]} 0-1


[Site "https://www.chess.com"]

[Event "Titled Tuesday Blitz May 16 Late 2023"]
[White "Kujawski, Adam"]
[Black "Hnydiuk, Aleksander"]
[WhiteFideId "1100920"]
[BlackFideId "1109057"]
[WhiteElo "2054"]
[BlackElo "2374"]
[Result "1-0"]
[Round "06"]
[TimeControl "180+2"]
[Date "2023.05.16"]
[WhiteClock "0:00:07"]
[BlackClock "0:00:00"]

1. e4 {[%clk 0:02:35]}  c6 {[%clk 0:02:59]} 2. d4 {[%clk 0:02:34]}  d5 {[%clk 0:02:59]} 3. f3 {[%clk 0:02:34]}  Nd7 {[%clk 0:02:33]} 4. Nc3 {[%clk 0:02:26]}  e5 {[%clk 0:02:30]} 5. Nge2 {[%clk 0:01:54]}  Ngf6 {[%clk 0:02:26]} 6. dxe5 {[%clk 0:01:33]}  Nxe5 {[%clk 0:02:25]} 7. f4 {[%clk 0:01:33]}  Neg4 {[%clk 0:02:20]} 8. e5 {[%clk 0:01:33]}  Nh5 {[%clk 0:02:18]} 9. g3 {[%clk 0:01:05]}  f6 {[%clk 0:02:02]} 10. e6 {[%clk 0:00:39]}  Bxe6 {[%clk 0:01:49]} 11. Nd4 {[%clk 0:00:39]}  Qe7 {[%clk 0:01:46]} 12. Be2 {[%clk 0:00:38]}  O-O-O {[%clk 0:01:42]} 13. Kf1 {[%clk 0:00:15]}  f5 {[%clk 0:01:12]} 14. Kg2 {[%clk 0:00:15]}  Nhf6 {[%clk 0:00:31]} 15. Re1 {[%clk 0:00:13]}  Ne4 {[%clk 0:00:21]} 16. Bf3 {[%clk 0:00:12]}  Bd7 {[%clk 0:00:14]} 17. Be3 {[%clk 0:00:10]}  Qf7 {[%clk 0:00:11]} 18. Bg1 {[%clk 0:00:09]}  Bc5 {[%clk 0:00:10]} 19. Nb3 {[%clk 0:00:08]}  Bxg1 {[%clk 0:00:05]} 20. Kxg1 {[%clk 0:00:09]}  Rhe8 {[%clk 0:00:03]} 21. Qd4 {[%clk 0:00:09]}  Qf8 {[%clk 0:00:01]} 22. Qxa7 {[%clk 0:00:08]}  g5 {[%clk 0:00:00]} 23. Na4 {[%clk 0:00:07]} 1-0


[Site "https://www.chess.com"]